[Event "SixDays Budapest GM-B May 2024"]
[Site "Budapest"]
[Date "2024.05.17"]
[Round "2.1"]
[White "Jinan Jomon"]
[Black "Kuru, Atilla"]
[Result "0-1"]
[ECO "A21"]
[WhiteElo "2380"]
[BlackElo "2313"]
[Annotator "TA"]
[PlyCount "118"]
[EventDate "2024.05.15"]
[EventType "tourn"]
[EventCountry "HUN"]
[SourceTitle "playchess.com"]
[Source "ChessBase"]
[SourceQuality "1"]
[TimeControl "40/5400+30:1800+30"]

{[%evp 33,118,-85,-89,-87,-95,-72,-75,-65,-74,-67,-65,-66,-48,-66,-63,-79,-72,-60,-62,-94,-88,-96,-107,-179,-119,-126,-124,-130,-127,-198,-180,-182,-170,-184,-168,-200,-197,-255,-250,-252,-214,-276,-272,-241,-253,-356,-357,-461,-437,-569,-534,-710,-687,-779,-610,-1001,-982,-1146,-1044,-1045,-1059,-1046,-999,-1204,-1126,-1825,-1730,-1735,-1593,-1862,-1780,-1955,-2020,-1857,-1806,-2598,-2730,-29971,-29977,-29981,-29981,-29979,-29980,-29981,-29982,-29992,-29993]} 1. c4 {[%emt 0:05:02]} e5 {[%emt 0:05:47]} 2. Nc3 {[%emt 0:00:46]} Bb4 {[%emt 0:00:15]} 3. Nd5 {[%emt 0:01:00]} a5 {[%emt 0:00:06]} 4. a3 {[%emt 0:02:04]} Be7 {[%emt 0:01:22]} 5. d4 {[%emt 0:01:11]} d6 {[%emt 0:00:54]} 6. Nxe7 $146 {[%emt 0:05:08] A21: English Opening: 1...e5 2 Nc3.} ({Predecessor:} 6. Nf3 e4 7. Nd2 f5 8. Nb1 Nf6 9. Nxe7 Qxe7 10. Bg5 O-O 11. Nc3 Be6 12. e3 {½-½ Zvjaginsev,V (2609)-Demchenko,A (2651) FIDE Grand Swiss 2021 (10)}) 6... Nxe7 {[%emt 0:02:22]} 7. e4 {[%emt 0:06:28]} exd4 {[%emt 0:07:32]} 8. Qxd4 {[%emt 0:00:07]} O-O {[%emt 0:00:05]} 9. b3 {[%emt 0:04:41]} Re8 {[%emt 0:05:48]} 10. Bd3 {[%emt 0:14:09]} Nbc6 {[%emt 0:09:38]} 11. Qc3 {[%emt 0:05:10]} d5 {[%emt 0:00:54]} 12. Ne2 {[%emt 0:00:37]} dxe4 {[%emt 0:02:43]} 13. Bxe4 {[%emt 0:00:57]} Nf5 {[%emt 0:00:20]} 14. Bxf5 {[%emt 0:06:19]} Bxf5 {[%emt 0:02:12]} 15. Be3 {[%emt 0:00:06]} Ne5 {[%emt 0:04:22]} 16. O-O {[%emt 0:06:26]} Ng4 {[%emt 0:00:20]} 17. Nd4 {[%emt 0:06:11]} Qd6 {[%emt 0:01:56]} 18. Nf3 {[%emt 0:04:37]} Nxe3 {[%emt 0:08:16]} 19. fxe3 {[%emt 0:00:04]} Qd3 {[%emt 0:05:22]} 20. Qxd3 {[%emt 0:02:15]} Bxd3 {[%emt 0:00:04]} 21. Rfc1 {[%emt 0:06:37]} c5 {[%emt 0:01:33]} (21... Rxe3 22. Rc3 $16) 22. Kf2 {[%emt 0:02:42]} Rad8 {[%emt 0:00:27]} 23. Rc3 {[%emt 0:03:54]} Be4 {[%emt 0:03:18]} 24. Ke2 {[%emt 0:09:26]} f5 {[%emt 0:01:48]} 25. Ra2 {[%emt 0:01:39]} Re6 {[%emt 0:05:35]} 26. Rb2 {[%emt 0:01:42]} Rb6 {[%emt 0:00:37]} 27. Kf2 {[%emt 0:03:24]} Rd1 {[%emt 0:02:48]} 28. b4 {[%emt 0:01:16]} (28. Nd2 $17) 28... axb4 {[%emt 0:01:36]} (28... cxb4 $19 29. axb4 Rxb4) 29. axb4 $17 {[%emt 0:00:01]} Rxb4 {[%emt 0:00:13]} 30. Ra2 {[%emt 0:00:57]} h6 {[%emt 0:00:27]} 31. Ne5 {[%emt 0:00:25]} (31. Nd2 $17 {might work better.}) 31... Kh7 {[%emt 0:00:19]} 32. Rca3 {[%emt 0:00:31]} Rdb1 {[%emt 0:00:20]} 33. Kg3 {[%emt 0:00:34]} R1b2 {[%emt 0:00:28]} 34. h4 {[%emt 0:00:29] [#]} g5 $1 {[%emt 0:02:38]} (34... Bxg2 35. Nd3 f4+ (35... Rxa2 36. Rxa2 Rxc4 37. Kxg2 $11) 36. Kh2 Rxa2 37. Rxa2 Rxc4 (37... Rb3 38. Nxc5 Rb4 39. Rxg2 $14) 38. Kxg2 $15) 35. Ra5 {[%emt 0:00:22]} (35. hxg5 {was necessary.} hxg5 36. Nd7) 35... Kg7 $19 {[%emt 0:00:29]} (35... Bxg2 36. Nd3 f4+ 37. exf4 $11) 36. hxg5 {[%emt 0:00:40]} hxg5 {[%emt 0:00:11]} ({Worse is} 36... Bxg2 37. Nd3 f4+ (37... Rxa2 38. gxh6+ Kxh6 39. Rxa2 $14) 38. Kh2 (38. Kxf4 Rxc4+ 39. Ke5 Rxa2 $11) (38. exf4 R2b3 $11) (38. Nxf4 Rxa2 39. Rxa2 Bc6 $11) 38... Rxa2 39. Rxa2 Rxc4 40. gxh6+ (40. Rxg2 fxe3 41. gxh6+ Kxh6 $11) (40. Kxg2 hxg5 41. exf4 gxf4 $14) 40... Kxh6 41. Kxg2 (41. Rxg2 fxe3 42. Kg3 Rc3 $14) 41... fxe3 42. Kf3 $14) 37. Rxb2 {[%emt 0:00:25]} Rxb2 {[%emt 0:00:02]} 38. Nf3 {[%emt 0:00:22]} b6 {[%emt 0:00:41]} 39. Ra6 {[%emt 0:00:22]} (39. Ra7+ $142 Kh6 40. Rf7) 39... Kf6 $19 {[%emt 0:00:09]} 40. Ra7 {[%emt 0:00:36]} Bd3 {[%emt 0:00:17]} 41. Rc7 {[%emt 0:30:25]} Bxc4 {[%emt 0:31:22]} 42. Rc6+ {[%emt 0:00:05]} Be6 {[%emt 0:00:23]} 43. Rc7 {[%emt 0:01:06]} Bd5 {[%emt 0:00:22]} 44. Rd7 {[%emt 0:00:41]} Bxf3 {[%emt 0:00:18]} 45. Kxf3 {[%emt 0:00:10]} c4 {[%emt 0:00:05]} 46. Rc7 {[%emt 0:00:03]} b5 {[%emt 0:00:05]} 47. Rc6+ {[%emt 0:00:14]} Ke5 {[%emt 0:00:05]} 48. Rc5+ {[%emt 0:00:35]} Ke6 {[%emt 0:00:01]} 49. g4 {[%emt 0:00:10]} fxg4+ {[%emt 0:00:12]} 50. Kxg4 {[%emt 0:00:05]} Kd6 {[%emt 0:00:03]} 51. Rc8 {[%emt 0:00:25]} Rb3 {[%emt 0:00:18]} 52. e4 {[%emt 0:00:08]} Re3 {[%emt 0:00:35]} 53. Kf5 {[%emt 0:00:10]} g4 {[%emt 0:00:03]} 54. Rb8 {[%emt 0:00:50]} g3 {[%emt 0:00:29]} 55. Kf4 {[%emt 0:00:52]} g2 {[%emt 0:00:05]} 56. Rg8 {[%emt 0:00:07]} Re2 {[%emt 0:00:05]} 57. Rg6+ {[%emt 0:00:08]} Kc5 {[%emt 0:00:16]} 58. e5 {[%emt 0:00:06]} c3 {[%emt 0:00:09]} 59. e6 {[%emt 0:00:18]} c2 {[%emt 0:00:11]} 0-1

[Event "SixDays Budapest GM-B May 2024"]
[Site "Budapest"]
[Date "2024.05.17"]
[Round "2.2"]
[White "Stefansson, Vignir Vatnar"]
[Black "Fodor, Tamas Jr."]
[Result "0-1"]
[ECO "D79"]
[WhiteElo "2463"]
[BlackElo "2486"]
[Annotator "TA"]
[PlyCount "78"]
[EventDate "2024.05.15"]
[EventType "tourn"]
[EventCountry "HUN"]
[SourceTitle "playchess.com"]
[Source "ChessBase"]
[SourceQuality "1"]
[TimeControl "40/5400+30:1800+30"]

{[%evp 21,78,10,23,14,8,0,15,26,19,0,25,34,38,-15,38,0,35,-4,32,15,22,28,37,22,45,0,0,0,0,7,18,4,20,0,128,121,132,132,127,122,138,129,242,0,0,0,0,-43,-37,-341,-302,-340,-371,-29981,-29982,-29982,-29983,-29983,-29984]} 1. Nf3 {[%emt 0:01:13]} d5 {[%emt 0:00:43]} 2. d4 {[%emt 0:00:07]} Nf6 {[%emt 0:00:56]} 3. c4 {[%emt 0:00:07]} c6 {[%emt 0:02:53]} 4. g3 {[%emt 0:00:10]} g6 {[%emt 0:02:46]} 5. Bg2 {[%emt 0:00:26]} Bg7 {[%emt 0:00:07]} 6. O-O {[%emt 0:00:13]} O-O {[%emt 0:00:05]} 7. cxd5 {[%emt 0:05:42]} cxd5 {[%emt 0:00:28]} 8. Nc3 {[%emt 0:00:06][%cal Bb1c3,Bc3a4,Ba4c5][%mdl 32]} Nc6 {[%emt 0:01:21]} 9. Ne5 {[%emt 0:00:05]} Bf5 {[%emt 0:03:54]} 10. Nxc6 {[%emt 0:03:51]} bxc6 {[%emt 0:00:23]} 11. Bf4 {[%emt 0:00:11]} Nd7 {[%emt 0:05:08]} 12. Na4 {[%emt 0:05:44] Prevents Qb6} e5 {[%emt 0:05:15]} 13. dxe5 {[%emt 0:00:08]} Nxe5 {[%emt 0:00:05]} 14. Rc1 {[%emt 0:00:26] The position is equal.} Rc8 {[%emt 0:00:25]} 15. Be3 {[%emt 0:02:12]} Qd7 {[%emt 0:03:37]} 16. Nc5 {[%emt 0:02:36]} Qe7 {[%emt 0:01:28]} 17. Bd4 {[%emt 0:04:58]} ({White should try} 17. b3 $14) 17... Rfe8 {[%emt 0:00:18]} (17... Nd3 $1 $11 18. Nxd3 Bxd4) 18. b3 {[%emt 0:15:02]} h5 {[%emt 0:04:54][%cal Oe5d3,Bh7h5,Bh5h4,Bh4h3][%mdl 32]} (18... Nd3 $5 19. Nxd3 Bxd4 $15) 19. Qd2 {[%emt 0:01:52]} h4 {[%emt 0:07:15]} (19... Nd3 $5 20. Nxd3 Bxd4 $15) 20. Qc3 {[%emt 0:01:10]} h3 {[%emt 0:06:09]} 21. Bh1 {[%emt 0:00:25]} Bh6 {[%emt 0:00:32]} 22. Rce1 {[%emt 0:01:52] Threatens to win with e4.} Rcd8 {[%emt 0:05:09]} 23. Rd1 {[%emt 0:12:31]} Nd7 {[%emt 0:04:47]} 24. Rfe1 {[%emt 0:02:28]} Nxc5 {[%emt 0:00:46]} 25. Bxc5 {[%emt 0:00:14]} Qb7 {[%emt 0:01:04]} 26. Bf3 {[%emt 0:01:01]} (26. Qa5 {simplifies} Ra8 27. e3 Be4 28. Bxe4 Rxe4 29. f3) 26... Qa6 {[%emt 0:03:37]} 27. a3 {[%emt 0:06:04]} (27. Bd4 {simplifies} Bf8 28. g4 Be4 29. Bxe4 Rxe4 30. Qxh3 Bg7 31. Bxg7 Kxg7 32. Qc3+) 27... Be4 {[%emt 0:05:10]} (27... Bg7 $11 28. Bd4 Bxd4 29. Rxd4 Qxa3) 28. Bxe4 $16 {[%emt 0:01:50]} Rxe4 {[%emt 0:07:17]} 29. Qf6 {[%emt 0:01:56]} Rde8 {[%emt 0:03:24]} 30. Bd4 {[%emt 0:01:44]} Rxd4 {[%emt 0:02:12]} 31. Qxd4 {[%emt 0:00:08]} (31. Rxd4 $2 {perishes.} Bg7 32. Ra4 Qxa4 $19) 31... Rxe2 {[%emt 0:00:15]} (31... Bg7 $16 32. Qg4 Bc3) 32. Qh4 $2 {[%emt 0:07:28]} (32. Qg4 $18 Rxe1+ 33. Rxe1) 32... Bd2 $40 {[%emt 0:05:28][%mdl 128] Black attacks.} 33. Rf1 {[%emt 0:03:20]} Qc8 {[%emt 0:03:57] Strongly threatening ...c5.} 34. Qf6 {[%emt 0:06:25]} (34. b4 $5) 34... Qg4 {[%emt 0:06:05] ( -> ...Qe4)} 35. Qxc6 $2 {[%emt 0:01:05][%mdl 8192] [#] White does not recover from this.} ({Better is} 35. Qd8+ $15 Kg7 36. Qh4 Qxh4 37. gxh4) 35... Qf5 $1 $19 {[%emt 0:00:57]} 36. Qc5 {[%emt 0:08:23]} Kh7 {[%emt 0:04:41]} 37. Qd4 $2 {[%emt 0:01:14] [#] Wards off Qf3} (37. Rxd2 $19 Rxd2 38. Qe7) 37... g5 $1 {[%emt 0:00:04] Black mates.} 38. Rxd2 {[%emt 0:03:42]} Rxd2 {[%emt 0:00:06]} 39. Qe3 {[%emt 0:00:03]} d4 {[%emt 0:00:40] Weighted Error Value: White=0.51/Black=0.16 (very precise) .  Loses game:     	White=1     	---        Missed win:     	White=1     	---        Mistake:       	White=2     	Black=3      Inaccurate:     	White=4     	Black=2      OK:         	White=4     	Black=8      Best:        	White=3     	Black=4      Strong:       	---       	Black=2} 0-1

[Event "SixDays Budapest GM-B May 2024"]
[Site "Budapest"]
[Date "2024.05.17"]
[Round "2.3"]
[White "Palczert, Matyas"]
[Black "Lu, Maximillian"]
[Result "0-1"]
[ECO "B90"]
[WhiteElo "2333"]
[BlackElo "2373"]
[Annotator "RC"]
[PlyCount "90"]
[EventDate "2024.05.15"]
[EventType "tourn"]
[EventCountry "HUN"]
[SourceTitle "playchess.com"]
[Source "ChessBase"]
[SourceQuality "1"]
[TimeControl "40/5400+30:1800+30"]

1. e4 c5 {[%emt 0:01:19]} 2. Nf3 {[%emt 0:00:22]} d6 {[%emt 0:00:11]} 3. d4 {[%emt 0:00:06]} cxd4 {[%emt 0:00:06]} 4. Nxd4 {[%emt 0:00:07]} Nf6 {[%emt 0:00:06]} 5. Nc3 {[%emt 0:00:06]} a6 {[%emt 0:00:01]} 6. h3 {[%emt 0:00:14]} e5 {[%emt 0:00:07]} 7. Nf3 {[%emt 0:00:11]} h6 {[%emt 0:01:29]} 8. g4 {[%emt 0:03:40]} b5 {[%emt 0:03:22]} 9. g5 {[%emt 0:08:03]} hxg5 {[%emt 0:00:08]} 10. Nxg5 {[%emt 0:00:23]} Bb7 {[%emt 0:03:35]} 11. Be3 {[%emt 0:07:53]} Nbd7 {[%emt 0:01:31]} 12. a4 {[%emt 0:09:05]} b4 {[%emt 0:01:45]} 13. Nd5 {[%emt 0:00:37]} Nxd5 {[%emt 0:09:32]} 14. exd5 {[%emt 0:00:10]} Nf6 {[%emt 0:01:59]} 15. Bg2 {[%emt 0:00:29]} Qa5 {[%emt 0:02:31]} 16. O-O {[%emt 0:03:05]} Be7 {[%emt 0:06:15]} 17. Ne4 {[%emt 0:09:37]} Nxd5 {[%emt 0:05:05]} 18. Qg4 {[%emt 0:01:28]} g6 {[%emt 0:04:53]} 19. Rad1 {[%emt 0:06:31]} Rd8 {[%emt 0:03:48]} 20. Qg3 {[%emt 0:03:43]} Rh5 {[%emt 0:13:19]} 21. Qf3 {[%emt 0:09:23]} Rf5 {[%emt 0:06:21]} 22. Qe2 {[%emt 0:03:05]} Nxe3 {[%emt 0:09:29]} 23. fxe3 {[%emt 0:01:10]} Rxf1+ {[%emt 0:05:29]} 24. Rxf1 {[%emt 0:02:39]} Bxe4 {[%emt 0:02:17]} 25. Bxe4 {[%emt 0:00:07]} d5 {[%emt 0:00:08]} 26. Bd3 {[%emt 0:00:39]} Rd6 {[%emt 0:00:27]} 27. e4 {[%emt 0:01:13]} dxe4 {[%emt 0:00:38]} 28. Qxe4 {[%emt 0:01:38]} Qc5+ {[%emt 0:00:57]} 29. Kg2 {[%emt 0:01:36]} f5 {[%emt 0:03:30]} 30. Qa8+ {[%emt 0:00:48]} Kf7 {[%emt 0:00:16]} 31. b3 {[%emt 0:06:27]} Qc6+ {[%emt 0:04:29]} 32. Qxc6 {[%emt 0:00:05]} Rxc6 {[%emt 0:00:01]} 33. Bc4+ {[%emt 0:00:15]} Kf6 {[%emt 0:00:09]} 34. Rd1 {[%emt 0:00:17]} e4 {[%emt 0:01:18]} 35. Rd5 {[%emt 0:01:42]} Rd6 {[%emt 0:05:42]} 36. Rxd6+ {[%emt 0:00:08]} Bxd6 {[%emt 0:00:01]} 37. Bxa6 {[%emt 0:00:08]} f4 {[%emt 0:00:10]} 38. Bc8 {[%emt 0:04:11]} Kg5 {[%emt 0:03:27]} 39. Kf2 {[%emt 0:01:24]} Bc5+ {[%emt 0:01:09]} 40. Ke1 {[%emt 0:01:11]} f3 {[%emt 0:01:04]} 41. Ba6 {[%emt 0:31:27]} Bb6 {[%emt 0:30:50]} 42. Bb5 {[%emt 0:00:58]} Kf4 {[%emt 0:00:08]} 43. Bc6 {[%emt 0:00:59]} e3 {[%emt 0:00:33]} 44. Bb5 {[%emt 0:00:28]} g5 {[%emt 0:00:08]} 45. Bc4 {[%emt 0:00:25]} Kg3 {[%emt 0:00:10]} 0-1

[Event "SixDays Budapest GM-B May 2024"]
[Site "Budapest"]
[Date "2024.05.17"]
[Round "2.4"]
[White "Krishnan, Ritvik"]
[Black "Horvath, Adam"]
[Result "0-1"]
[ECO "B32"]
[WhiteElo "2298"]
[BlackElo "2448"]
[Annotator "TA"]
[PlyCount "110"]
[EventDate "2024.05.15"]
[EventType "tourn"]
[EventCountry "HUN"]
[SourceTitle "playchess.com"]
[Source "ChessBase"]
[SourceQuality "1"]
[TimeControl "40/5400+30:1800+30"]

{[%evp 22,110,0,0,8,0,7,0,0,0,0,-14,0,-6,0,0,0,0,0,-13,15,-53,-32,-34,-25,-66,0,0,0,-46,-21,-48,-50,-46,0,0,0,0,0,0,0,0,0,8,0,0,0,-6,0,-7,-28,-95,-104,-126,-116,-113,-113,-135,-141,-141,-136,-129,-129,-179,-179,-179,-171,-308,-283,-550,-507,-458,-518,-803,-662,-2105,-2061,-2165,-1066,-1426,-1328,-2681,-2670,-1548,-1656,-1337,-882,-5617,-5565,-6381,-6179]} 1. e4 {[%emt 0:06:58]} c5 {[%emt 0:00:06]} 2. Nf3 {[%emt 0:00:04]} Nc6 {[%emt 0:00:07]} 3. d4 {[%emt 0:00:04]} cxd4 {[%emt 0:00:04]} 4. Nxd4 {[%emt 0:00:03]} Qb6 {[%emt 0:00:05]} 5. Nb3 {[%emt 0:00:05]} Nf6 {[%emt 0:00:05]} 6. Nc3 {[%emt 0:00:04]} e6 {[%emt 0:00:05]} 7. Bd3 {[%emt 0:00:03]} Qc7 {[%emt 0:00:45]} 8. O-O {[%emt 0:01:08] The main line 8.0-0 scores better than 8.f4.} a6 {[%emt 0:00:18]} 9. f4 {[%emt 0:01:56]} d6 {[%emt 0:00:04] B33: Sicilian: Pelikan and Sveshnikov Variations.} 10. Kh1 {[%emt 0:06:10]} b5 {[%emt 0:00:55]} 11. a3 {[%emt 0:02:18]} Bb7 {[%emt 0:00:26]} 12. Be3 {[%emt 0:02:11]} Be7 {[%emt 0:00:06]} 13. Qf3 {[%emt 0:02:27]} O-O {[%emt 0:03:54]} 14. Rae1 {[%emt 0:12:28]} b4 {[%emt 0:00:37]} 15. axb4 {[%emt 0:00:05]} Nxb4 {[%emt 0:00:05]} 16. Qh3 {[%emt 0:04:54]} Rab8 {[%emt 0:18:37]} 17. Nd4 {[%emt 0:09:50]} Nxd3 {[%emt 0:14:09]} 18. cxd3 {[%emt 0:00:39]} Ba8 {[%emt 0:00:47]} 19. Re2 {[%emt 0:05:37]} Rfe8 $146 {[%emt 0:07:50]} ({Predecessor:} 19... Qd7 20. Nf3 Rb3 21. f5 exf5 22. Nd4 Rbb8 23. Nxf5 Rfe8 24. Bd4 Qe6 25. Re3 Bd8 26. Rg3 g6 27. Qh6 Nh5 28. Qxh5 {1-0 Munguntuul,B (2430)-Cramling,P (2461) Wch Blitz (Women) 2019 (6)}) 20. Rc2 {[%emt 0:13:41]} Qd7 {[%emt 0:06:00]} 21. f5 {[%emt 0:05:15]} (21. Ra1 $11) 21... e5 $15 {[%emt 0:05:03]} 22. Nf3 {[%emt 0:00:09]} Bd8 {[%emt 0:00:09]} 23. Bg5 {[%emt 0:05:21]} h6 {[%emt 0:15:08]} ({Black should try} 23... d5 $15 24. Bxf6 Bxf6 25. exd5 Bxd5) 24. Bxf6 {[%emt 0:03:21]} Bxf6 {[%emt 0:00:05]} 25. Nd2 {[%emt 0:01:48]} (25. g4 $11 {should be considered.}) 25... Bg5 {[%emt 0:07:57]} 26. Qf3 {[%emt 0:01:24]} Bxd2 {[%emt 0:05:44]} 27. Rxd2 {[%emt 0:00:01]} Rb4 {[%emt 0:02:04]} (27... d5 $15) 28. f6 $11 {[%emt 0:01:23]} g6 {[%emt 0:00:07]} 29. Qe3 {[%emt 0:00:16]} Kh7 {[%emt 0:00:11]} 30. Rf3 {[%emt 0:00:17]} Qg4 {[%emt 0:04:10]} 31. Rdf2 {[%emt 0:01:28]} Qg5 {[%emt 0:00:35]} 32. Qe1 {[%emt 0:05:05]} h5 {[%emt 0:04:33]} 33. Rg3 {[%emt 0:00:17]} Qh6 $1 {[%emt 0:00:07]} 34. h4 {[%emt 0:00:19]} Reb8 {[%emt 0:01:33]} 35. Qa1 {[%emt 0:00:20]} d5 {[%emt 0:00:14]} 36. Rg5 {[%emt 0:05:46]} (36. Qe1 $11) 36... dxe4 $17 {[%emt 0:00:11]} 37. Qa2 {[%emt 0:00:22] [#]} Kg8 $1 {[%emt 0:01:33]} ({Reject} 37... exd3 $6 38. Qxf7+ (38. Rxe5 {leads to mate.} Rxh4+ 39. Kg1 Qc1+) 38... Kh8 39. Rxg6 (39. Qxg6 Rxh4+ 40. Kg1 Qxg6 $11) 39... Rxh4+ 40. Kg1 Qc1+ 41. Nd1 Qxd1+ 42. Rf1 $11) 38. dxe4 {[%emt 0:01:54]} Bxe4 {[%emt 0:00:14]} 39. Nxe4 {[%emt 0:02:54]} Rxe4 {[%emt 0:00:04]} 40. g3 {[%emt 0:00:06] [#]} Rg4 $1 {[%emt 0:00:53]} 41. Rxg4 {[%emt 0:30:27]} Qc1+ {[%emt 0:30:58]} 42. Kg2 {[%emt 0:01:15]} (42. Kh2 $17 hxg4 43. b4) 42... Qc6+ $19 {[%emt 0:00:35]} ({Don't play} 42... hxg4 43. Qa4 $17) 43. Kh2 {[%emt 0:00:07]} hxg4 {[%emt 0:00:04]} 44. Qb1 {[%emt 0:01:04]} (44. Qa5 $142) 44... e4 $19 {[%emt 0:00:25]} 45. Qe1 $2 {[%emt 0:00:50]} (45. Qc2 Qb6 46. Re2) 45... Rb3 $19 {[%emt 0:02:46]} 46. Qd1 {[%emt 0:00:44]} Rf3 {[%emt 0:00:27]} 47. Re2 {[%emt 0:00:28]} (47. Qd4 $142) 47... e3 {[%emt 0:00:24]} 48. Qd8+ {[%emt 0:00:25]} Kh7 {[%emt 0:00:04]} 49. Qe7 {[%emt 0:00:12]} Qc4 {[%emt 0:01:12]} (49... Rxf6 50. Qxe3 Rf3 51. Qe4 $17) (49... Qd5 $142 50. Rg2 Rf2 51. Rxf2 exf2) 50. Rg2 $19 {[%emt 0:00:51]} Qd5 {[%emt 0:00:16]} 51. Kg1 {[%emt 0:00:29]} Rf1+ {[%emt 0:00:48]} 52. Kh2 {[%emt 0:00:07]} Rf2 {[%emt 0:00:14]} 53. Rxf2 {[%emt 0:00:13]} exf2 {[%emt 0:00:04]} 54. Qe2 {[%emt 0:00:03]} Qd2 {[%emt 0:01:28]} 55. Qf1 {[%emt 0:00:21]} Qxb2 {[%emt 0:00:47]} 0-1

[Event "SixDays Budapest GM-B May 2024"]
[Site "Budapest"]
[Date "2024.05.17"]
[Round "2.5"]
[White "Lamard, Guillaume"]
[Black "Borgaonkar Akshay"]
[Result "1/2-1/2"]
[ECO "D78"]
[WhiteElo "2504"]
[BlackElo "2374"]
[Annotator "TA"]
[PlyCount "84"]
[EventDate "2024.05.15"]
[EventType "tourn"]
[EventCountry "HUN"]
[SourceTitle "playchess.com"]
[Source "ChessBase"]
[SourceQuality "1"]
[TimeControl "40/5400+30:1800+30"]

{[%evp 13,84,4,18,12,4,2,17,11,31,22,26,4,2,-21,-7,-4,0,0,0,0,20,12,22,4,10,24,24,12,32,23,54,47,51,56,48,44,49,40,63,39,77,62,50,27,27,27,27,27,32,34,60,62,70,8,12,12,11,10,10,10,11,8,8,8,12,8,8,8,8,8,8,8,10]} 1. d4 {[%emt 0:00:14]} d5 {[%emt 0:00:09]} 2. c4 {[%emt 0:00:07]} c6 {[%emt 0:00:07]} 3. Nf3 {[%emt 0:00:06]} Nf6 {[%emt 0:00:08]} 4. g3 {[%emt 0:00:18]} g6 {[%emt 0:00:47]} 5. Bg2 {[%emt 0:00:41]} Bg7 {[%emt 0:00:11]} 6. O-O {[%emt 0:00:09]} O-O {[%emt 0:00:08]} 7. Ne5 {[%emt 0:00:29]} Be6 {[%emt 0:03:44]} 8. cxd5 {[%emt 0:00:35]} Bxd5 {[%emt 0:00:55]} 9. Bh3 {[%emt 0:00:26]} c5 {[%emt 0:07:08]} 10. dxc5 {[%emt 0:00:12]} Ne4 {[%emt 0:22:39][%csl LRc5,LRe5] Prevents Nc3} 11. Nd3 {[%emt 0:00:42]} Na6 {[%emt 0:05:08]} 12. Qc2 {[%emt 0:30:15]} e6 {[%emt 0:01:26]} 13. Nf4 {[%emt 0:09:15]} Nexc5 {[%emt 0:04:14]} 14. Nxd5 {[%emt 0:01:14]} Qxd5 {[%emt 0:01:03]} 15. Be3 {[%emt 0:13:47]} Rac8 {[%emt 0:06:27]} 16. Nc3 {[%emt 0:00:16]} Qh5 {[%emt 0:01:43] [#] ...Nb4 is the strong threat.} 17. Bg2 {[%emt 0:00:24]} Nb4 {[%emt 0:01:06]} 18. Qb1 {[%emt 0:00:46]} Nd5 {[%emt 0:04:10]} 19. Nxd5 {[%emt 0:05:31]} exd5 {[%emt 0:00:08]} 20. Qd1 {[%emt 0:01:05]} Bxb2 {[%emt 0:06:25]} 21. Rb1 {[%emt 0:00:26]} Bf6 {[%emt 0:00:38][%cal Od5d4]} 22. Bf3 {[%emt 0:04:33] A strong pair of Bishops.} (22. Bxd5 $2 {perishes.} Rfd8 23. Bxf7+ Kxf7 $19) 22... Qf5 {[%emt 0:01:52][%cal Od5d4]} 23. Bxc5 {[%emt 0:04:55]} (23. Bxd5 $2 {too greedy.} Rfd8 24. Bxf7+ Kxf7 $19) 23... Rxc5 {[%emt 0:00:09]} 24. Rxb7 {[%emt 0:00:04]} a5 {[%emt 0:03:36]} 25. Kg2 {[%emt 0:01:15]} h5 {[%emt 0:01:01]} 26. h4 {[%emt 0:00:20]} Rd8 {[%emt 0:08:36]} 27. Qa4 {[%emt 0:01:09]} d4 {[%emt 0:01:29]} 28. Qb3 {[%emt 0:03:42]} Rd7 {[%emt 0:02:41]} 29. Rb1 {[%emt 0:01:02][%cal Bf1b1,Bb1b6,Bb6d6][%mdl 32]} Rxb7 {[%emt 0:03:26]} 30. Qxb7 {[%emt 0:00:05]} Kg7 {[%emt 0:00:26]} 31. Rb6 {[%emt 0:08:15]} (31. Qe4 {simplifies} Qxe4 32. Bxe4 Be5 33. Rb7) 31... Re5 {[%emt 0:01:04]} 32. Rd6 {[%emt 0:04:09]} Re7 {[%emt 0:02:16] Inhibits Rd7.} 33. Qb3 {[%emt 0:00:14]} ({White should try} 33. Qa8 $14) 33... Re6 {[%emt 0:01:22] The position is equal.} 34. Rd5 {[%emt 0:00:50]} Re5 {[%emt 0:00:34]} 35. Qb7 {[%emt 0:04:53]} Rxd5 {[%emt 0:00:51]} 36. Bxd5 $11 {[%emt 0:00:04][%mdl 4096] Endgame. KQB-KQB} Be7 {[%emt 0:00:50]} 37. Be4 {[%emt 0:00:48]} Qe6 {[%emt 0:00:49]} 38. a4 {[%emt 0:00:18]} Bf6 {[%emt 0:01:12]} 39. Bd3 {[%emt 0:00:56]} Qe7 {[%emt 0:00:29]} 40. Qd5 {[%emt 0:00:18]} Qd8 {[%emt 0:00:17]} 41. Qc5 {[%emt 0:30:50]} Be7 {[%emt 0:30:51]} 42. Qb5 {[%emt 0:00:50]} Qc7 {[%emt 0:00:42] Weighted Error Value: White=0.07 (flawless) /Black=0.08 (flawless) .  Mistake:       	White=1     	---        Inaccurate:     	---       	Black=3      OK:         	White=14    	Black=11     Best:        	White=1     	---} 1/2-1/2